bitfinex/quotes_ETHUSD_20251028
["timestamp","ask_amount","ask_price","bid_price","bid_amount"]
[1761688833344,2.51270017,3979.8,3979.4,0.4662]
[1761688833547,4.74876053,3979.7,3979.4,0.4662]
[1761688833747,2.236,3979.7,3979.4,0.4662]
[1761688834338,2.51285828,3979.6,3979.4,0.4662]
[1761688835251,2.51281535,3979.6,3979.4,0.4662]
[1761688835456,2.5128785,3979.5,3979.4,0.4662]
[1761688837552,2.236,3979.7,3979.3,0.189391]
[1761688837755,2.63854164,3979.4,3979.3,0.655591]
[1761688837953,2.3606,3979.4,3979.3,0.655591]
[1761688838525,4.87354164,3979.4,3979.3,0.655591]
[1761688838965,2.3606,3979.4,3979.3,0.655591]
[1761688839147,4.87354164,3979.4,3979.3,0.655591]
[1761688844171,4.87354164,3979.4,3979.3,0.4662]
[1761688845540,2.51300479,3979.3,3978.2,2.51369966]
[1761688845747,2.51332059,3978.8,3978.7,0.4748]
[1761688845947,4.74632059,3978.8,3978.7,0.4748]
[1761688846366,0.1256,3978.7,3978.1,0.694]
[1761688846677,2.51369966,3978.2,3978.1,0.694]
[1761688846845,2.51369966,3978.2,3976.5,2.51474845]
[1761688846846,0.1256,3978.1,3977.7,0.4748]
[1761688847174,2.51390037,3977.9,3977.7,0.4748]
[1761688847362,4.74795243,3977.8,3977.7,0.4748]
[1761688847550,2.63964253,3977.7,3977.3,0.4748]
[1761688847756,2.51407884,3977.6,3977.5,0.4748]
[1761688848545,2.51407884,3977.6,3976.7,2.51464657]
[1761688848546,2.51414204,3977.5,3976.6,0.002]
[1761688848779,4.74814204,3977.5,3977.4,0.002]
[1761688849657,4.74814204,3977.5,3977.4,0.4768]
[1761688849854,4.74814204,3977.5,3977.4,0.002]
[1761688854152,4.74814204,3977.5,3977.4,0.4768]
[1761688854452,4.74814204,3977.5,3977.4,0.002]
[1761688855061,0.099,3978.2,3977.4,0.002]
[1761688855062,1.5552,3978.8,3977.4,0.002]
[1761688855373,2.51363647,3978.3,3977.4,0.002]
[1761688855685,2.51414204,3977.5,3977.4,0.002]
[1761688855860,4.74914204,3977.5,3977.4,0.002]
[1761688860002,4.74814204,3977.5,3977.4,0.002]
[1761688861406,6.30334204,3977.5,3977.4,0.002]
[1761688861583,6.40234204,3977.5,3977.4,0.002]
[1761688862601,11.39808304,3977.5,3977.4,0.002]
[1761688863466,18.24641804,3977.5,3977.4,0.002]
[1761688864220,2.51553341,3975.3,3975.2,0.2259]
[1761688864377,2.51559669,3975.2,3975.1,0.005]
[1761688865517,16.55515544,3977.1,3975.1,0.7057]
[1761688865722,1.5552,3977.0,3975.2,0.4748]
[1761688866006,2.51476691,3976.6,3975.6,2.51531479]
[1761688866208,2.239,3976.5,3975.7,2.51527951]
[1761688866370,4.75378618,3976.5,3975.4,2.99027014]
[1761688866575,6.30898618,3976.5,3976.4,0.2259]
[1761688867481,6.30898618,3976.5,3976.4,0.7007]
[1761688867671,2.51491455,3976.3,3976.1,0.2259]
[1761688867872,4.75396403,3976.2,3976.1,0.2259]
[1761688868229,4.75396403,3976.2,3976.1,0.7007]
[1761688869176,2.239,3976.2,3976.1,0.7007]
[1761688869602,4.75396403,3976.2,3976.1,0.7007]
[1761688871204,4.75396403,3976.2,3976.1,0.7027]
[1761688871908,2.239,3976.2,3976.1,0.7027]
[1761688872110,4.75396403,3976.2,3976.1,0.7027]
[1761688873653,0.099,3977.6,3976.1,0.7027]
[1761688873953,2.51449821,3977.0,3976.2,0.4498]
[1761688874106,2.238,3976.9,3976.2,0.4498]
[1761688874306,2.238,3976.9,3976.2,2.96476161]
[1761688874507,2.238,3976.9,3976.2,2.98991125]
[1761688874708,2.238,3976.9,3976.3,0.4498]
[1761688874924,2.51458901,3976.8,3976.3,0.4498]
[1761688875124,2.51464815,3976.7,3976.3,0.4498]
[1761688875339,4.75173479,3976.6,3976.3,0.4498]
[1761688875856,4.75172247,3976.6,3976.3,0.4498]
[1761688876154,2.237,3976.6,3976.3,0.4498]
[1761688882448,2.237,3976.6,3976.3,2.96470019]
[1761688883618,2.237,3976.6,3976.4,0.4498]
[1761688888491,2.237,3976.6,3976.5,0.02514774]
[1761688888630,2.237,3976.6,3976.4,0.4498]
[1761688888835,2.237,3976.6,3976.5,0.4498]
[1761688889157,2.237,3976.6,3976.5,0.47494774]
[1761688890164,2.237,3976.6,3976.5,0.4498]
[1761688894749,2.237,3976.6,3976.5,2.96457429]
[1761688894949,2.237,3976.6,3976.5,0.4498]
[1761688896288,2.234,3977.0,3976.5,0.4498]
[1761688896583,2.234,3977.0,3976.5,2.96456405]
[1761688896789,2.234,3977.0,3976.6,2.51470862]
[1761688896989,2.234,3977.0,3976.7,0.405504]
[1761688897163,0.1256,3976.8,3976.7,3.36994353]
[1761688897785,0.1256,3976.8,3976.7,3.39509]
[1761688897966,0.1256,3976.8,3976.7,3.36994353]
[1761688898374,0.1256,3976.8,3976.7,3.39509]
[1761688898581,0.001,3977.0,3976.9,2.92002536]
[1761688898887,0.001,3977.0,3976.9,4.60082536]
[1761688899186,0.001,3978.8,3978.1,2.51374561]
[1761688899386,0.001,3978.8,3977.6,0.405504]
[1761688899387,0.001,3978.8,3978.7,0.2138]
[1761688899901,0.001,3978.8,3978.7,0.6773]
[1761688900414,0.001,3978.8,3978.7,3.91526381]
[1761688900616,0.001,3978.8,3978.7,3.94039764]
[1761688900765,0.001,3978.8,3978.7,5.49559764]
[1761688900961,0.001,3978.8,3978.7,5.59606381]
[1761688904099,0.001,3978.8,3978.7,7.83206381]
[1761688904598,0.001,3978.8,3978.7,5.59606381]
[1761688904803,0.001,3978.8,3978.7,3.63535981]
[1761688904996,0.001,3978.8,3978.7,5.74575981]
[1761688905199,0.001,3978.8,3978.7,7.30095981]
[1761688906508,0.001,3978.8,3978.7,7.70646381]
[1761688914906,0.001,3978.8,3978.7,7.83206381]
[1761688920406,0.001,3978.8,3978.7,7.95866381]
[1761688925594,0.001,3978.8,3978.7,7.83306381]
[1761688931367,0.001,3978.8,3978.7,7.70646381]
[1761688933053,0.001,3978.8,3978.7,7.69946381]
[1761688935658,0.001,3978.8,3978.7,7.82506381]
[1761688935953,0.001,3978.8,3978.7,5.59606381]
[1761688936153,0.001,3978.8,3978.7,7.82506381]
[1761688939157,1e-08,3979.5,3979.4,3.14454564]
[1761688939344,1e-08,3979.5,3979.4,8.83062117]
[1761688939653,1e-08,3979.5,3979.4,9.41182117]
[1761688940955,0.001,3981.0,3979.4,9.41182117]
[1761688940956,0.001,3981.0,3980.2,4.47314056]
[1761688941260,0.001,3981.0,3980.2,6.70214056]
[1761688941563,0.001,3981.0,3980.2,8.10181618]
[1761688941949,1e-08,3981.0,3980.9,4.47269877]
[1761688942151,1e-08,3981.0,3980.9,7.19241871]
[1761688942349,1e-08,3981.0,3980.9,7.16729877]
[1761688942527,1e-08,3981.0,3980.9,9.59907717]
[1761688945390,1e-08,3981.0,3980.9,23.36848373]
[1761688945891,0.099,3982.9,3982.8,2.91630042]
[1761688946066,0.099,3982.9,3982.8,4.47150042]
[1761688947006,0.0929,3983.1,3983.0,2.91617434]
[1761688947007,0.1919,3983.1,3983.0,2.91617434]
[1761688947158,0.0929,3983.1,3983.0,2.91617434]
[1761688947359,0.0929,3983.1,3983.0,2.94128104]
[1761688947560,0.0929,3983.1,3983.0,5.15317434]
[1761688948669,0.1909,3983.8,3983.4,0.405504]
[1761688949188,0.2510854,3984.1,3983.4,0.405504]
[1761688949429,0.0929,3983.5,3983.4,2.91592223]
[1761688950819,0.0929,3983.5,3983.4,4.59592223]
[1761688951042,0.0929,3983.5,3983.4,5.53026888]
[1761688951337,0.099,3984.1,3984.0,0.405504]
[1761688951937,0.001,3984.2,3983.8,0.405504]
[1761688952088,0.099,3984.1,3983.5,1.960704]
[1761688952288,0.0929,3983.8,3983.5,1.960704]
[1761688952712,0.099,3983.7,3983.5,1.960704]
[1761688953332,0.099,3983.7,3983.5,4.47105233]
[1761688954353,0.001,3984.2,3984.1,2.50997715]
[1761688954501,0.001,3984.2,3984.1,6.73078092]
[1761688954851,0.001,3984.2,3984.1,6.70568115]
[1761688955054,0.001,3984.2,3984.1,7.38738115]
[1761688956641,0.001,3985.2,3984.6,4.47036619]
[1761688956826,0.001,3985.2,3984.6,20.47777275]
[1761688957140,0.001,3985.2,3984.6,20.93337275]
[1761688957642,0.001,3985.2,3984.9,4.47017726]
[1761688957805,0.001,3985.2,3984.9,6.70817726]
[1761688958144,0.001,3985.2,3984.9,9.5080511]
[1761688958444,0.001,3985.6,3985.0,4.47011428]
[1761688958608,0.001,3986.0,3985.5,2.91459947]
[1761688958809,0.001,3987.0,3986.0,1.960704]
[1761688959010,0.001,3987.0,3986.7,18.46455079]
[1761688959250,0.001,3987.0,3986.7,6.29600163]
[1761688959449,0.1,3986.8,3985.0,13.76940656]
[1761688959765,0.1,3986.8,3985.2,2.24]
[1761688960271,2.50834023,3986.7,3985.3,2.24]
[1761688960441,0.1,3986.8,3985.4,1.960704]
[1761688960645,0.099,3986.7,3985.6,0.405504]
[1761688960986,2.60735284,3986.7,3985.8,1.960704]
[1761688961478,0.1919,3986.6,3985.8,1.960704]
[1761688962267,0.1248,3986.3,3985.8,1.960704]
[1761688962440,2.50929013,3986.8,3986.1,0.405504]
[1761688962441,0.1248,3986.7,3986.1,0.405504]
[1761688962642,0.1248,3986.7,3986.2,2.239]
[1761688963145,0.2238,3986.7,3986.2,2.239]
[1761688963346,0.2238,3986.7,3986.3,0.02508591]
[1761688963545,0.1248,3986.7,3986.3,0.405504]
[1761688963735,0.001,3986.8,3986.7,0.405504]
[1761688964358,0.1,3986.8,3986.7,0.405504]
[1761688964533,0.1,3986.8,3986.6,0.1248]
[1761688964738,0.1,3986.8,3986.5,0.405504]
[1761688965042,2.50839389,3986.7,3986.3,2.239]
[1761688965248,2.63319389,3986.7,3986.3,2.239]
[1761688965454,0.099,3986.6,3986.3,2.239]
[1761688965735,0.099,3986.6,3986.2,0.405504]
[1761688965978,0.099,3986.6,3986.1,2.3638]
[1761688968575,0.001,3986.8,3986.5,0.405504]
[1761688968774,0.001,3986.8,3986.7,1.960704]
[1761688969163,0.001,3986.8,3986.7,2.397504]
[1761688970076,0.001,3986.8,3986.7,1.960704]
[1761688970379,0.001,3986.8,3986.7,0.405504]
[1761688970676,0.001,3986.8,3986.7,1.960704]
[1761688970880,0.001,3986.8,3986.7,4.199704]
[1761688971044,0.001,3986.8,3985.3,0.4368]
[1761688971045,0.1,3986.8,3985.3,0.4368]
[1761688971259,0.1,3986.8,3985.1,0.2227]
[1761688971260,2.50853504,3986.4,3985.1,0.2227]
[1761688971464,2.50858699,3986.4,3985.1,0.2227]
[1761688971673,0.099,3985.2,3984.1,0.7633403]
[1761688971894,0.099,3985.2,3984.2,2.239]
[1761688972090,0.099,3985.2,3984.3,1.5552]
[1761688972261,0.099,3985.2,3984.2,0.4368]
[1761688972460,0.099,3985.2,3983.9,0.2227]
[1761688972461,0.198,3985.2,3983.9,0.2227]
[1761688972700,0.099,3985.1,3984.3,2.24]
[1761688972866,0.099,3985.2,3984.4,0.224]
[1761688973067,0.099,3985.2,3984.5,0.405504]
[1761688973288,0.099,3985.2,3984.4,2.4387]
[1761688973494,0.099,3985.2,3984.5,0.405504]
[1761688973675,0.099,3985.2,3984.4,2.4387]
[1761688973875,0.099,3985.2,3984.5,0.71885202]
[1761688974286,0.099,3985.9,3984.5,0.71885202]
[1761688974459,0.099,3985.5,3984.7,0.405504]
[1761688974667,0.099,3985.5,3984.9,0.405504]
[1761688975028,0.099,3985.5,3985.1,0.405504]
[1761688975698,0.3498587,3986.4,3985.1,2.620204]
[1761688975899,0.3498587,3986.4,3985.1,1.065004]
[1761688976491,2.85839605,3986.4,3985.1,1.065004]
[1761688977480,2.85839605,3986.4,3985.1,0.6595]
[1761688977680,2.85839605,3986.4,3985.2,0.405504]
[1761688977681,0.099,3986.3,3985.2,0.405504]
[1761688977906,2.50885626,3985.9,3985.2,2.644504]
[1761688978101,2.50885626,3985.9,3984.5,1.5552]
[1761688978102,0.099,3985.3,3984.4,1.7779]
[1761688978306,0.099,3985.3,3984.5,2.239]
[1761688978473,0.099,3985.3,3984.6,0.807194]
[1761688978805,0.099,3985.3,3984.6,2.362394]
[1761688979014,0.1248,3985.7,3985.2,0.2227]
[1761688979310,0.1248,3986.1,3985.4,1.960704]
[1761688979810,0.1248,3986.1,3982.5,1.254]
[1761688979811,0.1919,3986.1,3982.5,1.254]
[1761688979984,13.76940656,3985.8,3983.6,0.4368]
[1761688980172,13.76940656,3985.8,3983.4,0.2227]
[1761688980173,2.24,3985.7,3983.4,0.2227]
[1761688980379,13.76940656,3984.7,3983.2,0.764]
[1761688980628,2.50985826,3984.3,3983.2,0.764]
[1761688980805,2.50979691,3984.4,3983.3,0.405504]
[1761688981124,0.0929,3984.5,3983.3,0.4368]
[1761688981327,0.0929,3984.5,3983.4,2.65276571]
[1761688981524,0.0929,3984.5,3983.5,1.5552]
[1761688981684,0.0929,3984.5,3983.6,0.405504]
[1761688982020,0.0929,3984.5,3984.2,0.002]
[1761688982430,0.099,3985.9,3984.5,2.509688]
[1761688982727,0.099,3985.9,3984.8,0.405504]
[1761688983078,0.099,3985.8,3985.0,0.405504]
[1761688983340,0.099,3985.8,3985.0,1.960704]
[1761688983474,0.099,3985.9,3985.2,0.405504]
[1761688983677,0.099,3985.9,3985.3,0.02509221]
[1761688983930,0.001,3986.8,3985.4,0.405504]
[1761688984136,0.001,3986.8,3985.7,0.405504]
[1761688984287,0.099,3986.7,3985.7,0.405504]
[1761688984491,0.099,3986.7,3985.6,0.405504]
[1761688984727,0.099,3986.7,3985.6,1.960704]
[1761688984893,0.099,3986.7,3985.7,0.4203704]
[1761688985687,0.099,3985.8,3985.4,0.405504]
[1761688985928,0.099,3985.8,3985.6,0.405504]
[1761688986530,0.001,3986.8,3985.5,0.405504]
[1761688986739,0.099,3986.7,3985.5,0.405504]
[1761688987044,0.099,3986.7,3985.6,1.5552]
[1761688987229,0.099,3986.7,3985.8,0.405504]
[1761688987424,0.001,3986.8,3985.8,1.960704]
[1761688987633,0.001,3986.8,3986.2,0.405504]
[1761688987831,0.001,3986.8,3986.4,0.405504]
[1761688988233,0.001,3986.8,3986.4,1.960704]
[1761688988465,0.001,3986.8,3986.4,0.405504]
[1761688988682,0.001,3986.8,3986.4,0.8258744]
[1761688988961,0.001,3986.8,3986.4,0.405504]
[1761688989262,0.001,3986.8,3986.4,1.960704]
[1761688989465,0.001,3986.8,3986.7,2.91384423]
[1761688989985,0.001,3986.8,3986.7,0.530304]
[1761688990190,0.001,3986.8,3986.7,4.80239463]
[1761688990883,0.001,3986.8,3986.7,2.2940544]
[1761688991084,0.001,3986.8,3986.7,4.5380544]
[1761688991454,0.001,3986.8,3986.7,7.49209463]
[1761688991790,0.001,3986.8,3986.7,7.36729463]
[1761688991993,0.001,3986.8,3986.7,2.1692544]
[1761688992154,0.001,3986.8,3986.7,4.4132544]
[1761688993066,0.001,3986.8,3986.7,6.92159463]
[1761688993462,0.001,3986.8,3986.7,4.8589544]
[1761688993684,0.001,3986.8,3986.7,7.36729463]
[1761688994593,0.001,3986.8,3986.7,2.1692544]
[1761688994775,0.001,3986.8,3986.7,4.4132544]
[1761688995161,0.001,3986.8,3986.7,7.36729463]
[1761688996877,0.001,3986.8,3986.7,5.12329463]
[1761688997102,0.001,3986.8,3986.7,7.36729463]
[1761688999200,0.001,3986.8,3986.7,5.12329463]
[1761688999373,0.001,3986.8,3986.7,7.36829463]
[1761689000994,0.001,3986.8,3986.7,5.12329463]
[1761689001329,0.001,3986.8,3986.7,7.36829463]
[1761689001506,0.001,3986.8,3986.7,7.49309463]
[1761689003102,0.001,3986.8,3986.7,7.49409463]
[1761689008413,0.001,3986.8,3986.7,7.59447091]
[1761689009038,0.001,3987.0,3986.9,4.4689184]
[1761689009226,0.001,3987.0,3986.9,6.8440421]
[1761689009540,0.001,3987.0,3986.9,9.5337421]
[1761689010003,0.001,3987.0,3986.9,7.2897421]
[1761689010207,0.001,3987.0,3986.9,9.5327421]
[1761689010410,0.001,3987.0,3986.9,7.1576184]
[1761689012240,0.001,3987.2,3987.1,2.91359258]
[1761689012415,0.001,3987.2,3987.1,4.69319258]
[1761689012613,0.001,3987.2,3987.1,5.13889258]
[1761689012838,0.001,3987.2,3987.1,7.38189258]
[1761689013145,0.001,3987.2,3987.1,8.37090328]
[1761689014613,0.001,3987.6,3987.5,2.50783699]
[1761689014819,0.001,3987.6,3987.5,6.71254099]
[1761689015143,0.001,3987.6,3987.5,4.91424099]
[1761689015348,0.001,3987.6,3987.5,7.15824099]
[1761689015647,0.001,3987.6,3987.5,5.4351566]
[1761689015854,0.001,3987.6,3987.5,7.6791566]
[1761689017355,0.001,3987.6,3987.5,8.1248566]
[1761689018953,0.001,3987.6,3987.5,8.2496566]
[1761689019517,0.001,3988.0,3987.9,2.91308944]
[1761689019727,13.28075627,3991.7,3989.9,0.405504]
[1761689019918,0.1,3990.0,3989.3,1.960704]
[1761689020144,0.1,3990.0,3989.5,1.960704]
[1761689020345,0.1,3990.0,3989.7,1.960704]
[1761689020524,0.1,3990.0,3989.9,1.960704]
[1761689021528,0.1,3990.0,3988.1,0.2203]
[1761689021862,0.1,3990.0,3988.7,0.405504]
[1761689022060,0.26991511,3989.9,3988.9,0.405504]
[1761689022264,0.26991511,3989.9,3987.9,2.50754569]
[1761689022265,0.26991511,3989.9,3989.1,0.405504]
[1761689022559,0.0929,3990.1,3988.0,2.5074789]
[1761689022560,0.1,3989.8,3989.3,1.960704]
[1761689022766,0.1,3989.8,3989.3,2.649504]
[1761689023139,0.0929,3990.1,3989.3,2.649504]
[1761689023346,0.1,3989.8,3989.3,2.649504]
[1761689023905,0.1,3989.8,3988.8,2.50699251]
[1761689023906,0.1,3989.8,3989.5,0.405504]
[1761689026039,0.1,3989.8,3988.6,1.960704]
[1761689026245,0.1,3989.8,3988.8,1.960704]
[1761689026567,0.1,3989.8,3989.0,0.405504]
[1761689026735,0.1,3989.8,3989.0,1.960704]
[1761689026930,0.1,3989.8,3987.6,0.4322]
[1761689027134,2.50663569,3989.5,3988.1,2.50743867]
[1761689027373,2.50663569,3989.5,3988.3,1.5552]
[1761689027567,2.50663569,3989.5,3988.2,2.9010217]
[1761689027568,2.5067138,3989.3,3988.2,0.6570217]
[1761689027775,2.5067138,3989.3,3987.6,0.4322]
[1761689027776,0.1,3989.4,3988.3,2.244]
[1761689027958,0.1929,3989.3,3988.5,0.405504]
[1761689028164,0.1929,3989.3,3988.4,1.218]
[1761689028363,0.1929,3989.3,3988.5,0.405504]
[1761689028582,0.1929,3989.3,3986.7,0.6407504]
[1761689028745,2.50687461,3989.1,3987.7,2.50767784]
[1761689028946,0.1929,3989.0,3987.8,2.3072]
[1761689029278,0.1929,3989.0,3987.9,0.02507585]
[1761689029574,2.50696467,3988.9,3987.8,0.752]
[1761689029790,0.1248,3988.6,3988.0,0.1248]
[1761689030162,0.1929,3988.5,3988.0,0.1248]
[1761689030363,0.1929,3988.5,3988.1,0.405504]
[1761689030564,0.1,3988.4,3988.3,0.405504]
[1761689030778,0.1,3988.4,3988.3,4.22877733]
[1761689031219,0.199,3988.4,3988.3,4.203704]
[1761689031565,0.199,3988.4,3988.3,1.5552]
[1761689031761,0.199,3988.4,3988.0,0.405504]
[1761689031978,0.099,3988.3,3988.0,0.405504]
[1761689033000,0.099,3988.3,3987.9,0.1248]
[1761689033315,0.1248,3988.0,3987.4,2.243]
[1761689033470,0.099,3988.3,3987.6,0.405504]
[1761689033671,0.1248,3988.2,3987.6,1.960704]
[1761689034071,0.099,3988.1,3987.6,1.960704]
[1761689035003,0.099,3988.1,3988.0,0.002]
[1761689037604,0.001,3988.8,3988.0,0.002]
[1761689037605,0.001,3988.8,3988.2,0.405504]
[1761689037807,0.001,3988.8,3988.7,4.4677865]
[1761689037973,0.001,3988.8,3988.7,5.16528166]
[1761689038174,0.001,3988.8,3988.7,7.54308166]
[1761689038675,0.001,3988.8,3988.7,7.97528166]
[1761689039780,0.1248,3990.4,3989.1,2.91233511]
[1761689039979,0.0949,3991.5,3989.9,0.405504]
[1761689040284,0.0949,3992.3,3990.4,0.405504]
[1761689040484,2.50483533,3992.3,3990.8,1.5552]
[1761689040696,0.0949,3992.2,3990.0,0.405504]
[1761689041007,0.0949,3992.2,3990.3,0.02174964]
[1761689041312,2.50519944,3991.7,3990.5,0.405504]
[1761689041611,2.50519944,3991.7,3990.3,0.02174964]
[1761689041612,0.25051994,3991.6,3990.3,0.02174964]
[1761689041781,1.5552,3991.3,3990.3,0.02174964]
[1761689041972,2.50571985,3990.9,3990.3,0.02174964]
[1761689042172,0.0949,3991.2,3990.3,0.02174964]
[1761689042373,2.50601443,3990.4,3990.3,0.02174964]
[1761689042799,2.60091443,3990.4,3990.3,0.02174964]
[1761689043810,4.15611443,3990.4,3990.3,0.02174964]
[1761689044013,4.15611443,3990.4,3987.7,0.02]
[1761689044014,0.0949,3990.4,3987.7,0.02]
[1761689044181,2.50663848,3989.5,3987.7,0.02]
[1761689044507,0.25066385,3989.4,3987.9,2.50756055]
[1761689044818,0.0949,3989.3,3987.9,2.50756055]
[1761689044984,0.0949,3989.3,3988.0,1.962704]
[1761689045173,2.50677778,3989.2,3988.0,0.002]
[1761689045614,0.0949,3989.1,3988.0,0.002]
[1761689045807,0.37686216,3989.1,3988.0,0.407504]
[1761689046207,0.0949,3989.0,3988.0,0.002]
[1761689047620,2.50722066,3988.5,3988.0,0.002]
[1761689047816,13.37565627,3988.4,3987.6,0.002]
[1761689048030,2.50763062,3987.9,3987.6,0.002]
[1761689048208,2.75845971,3987.8,3987.6,0.002]
[1761689048522,2.50771121,3987.7,3987.6,0.002]
[1761689048689,2.60061121,3987.7,3987.6,0.002]
[1761689054942,4.15581121,3987.7,3987.6,0.002]
[1761689055140,15.99988721,3987.7,3987.6,0.002]
[1761689055456,11.49603116,3987.7,3987.6,0.002]
[1761689055656,4.43767416,3987.7,3987.6,0.002]
[1761689057535,2.78957416,3987.7,3987.6,0.002]
[1761689057834,2.50771121,3987.7,3987.6,0.002]
[1761689058061,13.28075627,3988.4,3987.6,0.002]
[1761689058062,2.50702286,3988.8,3987.6,0.002]
[1761689058352,2.263,3988.7,3987.6,0.4437]
[1761689058556,2.50795344,3989.0,3987.6,0.4437]
[1761689058557,0.001,3989.0,3987.6,0.4437]
[1761689058703,0.001,3989.0,3987.7,0.43058111]
[1761689058905,0.001,3989.0,3987.7,0.405504]
[1761689059146,0.001,3989.0,3987.6,0.4437]
[1761689059147,0.0929,3988.9,3987.9,0.405504]
[1761689059301,0.0929,3988.9,3987.6,0.002]
[1761689059302,0.001,3989.0,3987.6,0.407504]
[1761689059506,0.001,3989.0,3988.1,0.405504]
[1761689059805,0.001,3989.0,3988.3,0.405504]
[1761689060318,0.001,3989.0,3988.2,0.6614]
[1761689060319,0.001,3989.0,3988.5,0.405504]
[1761689061134,2.50789478,3989.0,3988.3,0.405504]
[1761689061522,4.7799568,3988.9,3987.5,0.6614]
[1761689061731,2.50707664,3988.8,3987.5,0.2197]
[1761689061936,2.50709498,3988.7,3987.6,0.4437]
[1761689062438,2.50720984,3988.5,3987.7,0.405504]
[1761689062608,2.273,3988.9,3987.7,0.405504]
[1761689062802,0.3203,3988.8,3987.6,0.002]
[1761689063045,2.50741217,3988.2,3987.6,0.002]
[1761689063406,2.50728632,3988.4,3987.6,0.002]
[1761689063407,2.50746215,3988.1,3987.6,0.002]
[1761689063921,2.50771121,3987.7,3987.6,0.002]
[1761689065542,0.0929,3988.0,3987.6,0.002]
[1761689065742,2.50771121,3987.7,3987.6,0.002]
[1761689065917,4.78071121,3987.7,3987.6,0.002]
[1761689066319,2.50746985,3988.1,3987.6,0.002]
[1761689066641,2.50760298,3987.9,3987.6,0.002]
[1761689067041,2.272,3988.2,3987.6,0.002]
[1761689067255,0.1248,3987.8,3987.6,0.002]
[1761689067416,0.1248,3987.8,3987.7,0.4417]
[1761689069046,0.1248,3987.8,3987.6,0.002]
[1761689071453,0.1248,3987.8,3987.6,0.4437]
[1761689072159,2.273,3988.6,3987.7,0.405504]
[1761689072309,0.001,3989.0,3987.7,0.5309748]
[1761689072628,0.1248,3988.5,3988.0,0.405504]
[1761689073071,0.001,3989.0,3988.4,0.2197]
[1761689073275,0.001,3989.0,3987.7,2.3964708]
[1761689073276,0.0939,3988.9,3987.4,0.405504]
[1761689073469,0.1248,3988.1,3987.7,0.405504]
[1761689073981,0.1248,3988.1,3987.8,0.4417]
[1761689074150,0.1248,3988.1,3987.9,0.02507585]
[1761689074661,0.1248,3988.1,3987.9,0.46677585]
[1761689075163,0.1248,3988.1,3987.9,0.4417]
[1761689075782,0.1248,3988.1,3988.0,0.02507522]
[1761689076152,0.1248,3988.1,3988.0,0.4417]
[1761689078979,0.1248,3988.1,3987.6,0.849204]
[1761689079338,0.0929,3988.1,3987.6,0.002]
[1761689079654,2.50708903,3988.7,3987.6,0.002]
[1761689079655,2.63251121,3987.7,3987.6,0.002]
[1761689080044,0.1248,3987.7,3987.6,0.002]
[1761689080268,2.63251121,3987.7,3987.6,0.002]
[1761689082114,2.27,3988.4,3987.6,0.002]
[1761689082321,0.1248,3987.9,3987.6,0.4643]
[1761689082471,0.1248,3987.9,3987.7,0.02507711]
[1761689082674,0.1248,3987.9,3987.6,0.002]
[1761689082915,0.26322655,3987.9,3987.6,0.002]
[1761689083217,2.50871779,3986.1,3985.2,0.002]
[1761689083396,2.50859502,3986.3,3985.2,0.002]
[1761689083595,1.6461,3986.9,3985.4,0.4623]
[1761689083596,2.50865863,3986.2,3985.4,0.4623]
[1761689083899,2.50871779,3986.1,3985.2,0.002]
[1761689084106,2.59961779,3986.1,3985.2,0.002]
[1761689084300,2.50871779,3986.1,3985.2,0.002]
[1761689085109,2.50871779,3986.1,3985.2,0.2198]
[1761689085977,5.05709016,3986.2,3985.2,0.2198]
[1761689086166,2.59961779,3986.1,3985.2,0.002]
[1761689087905,2.279,3986.2,3985.2,0.002]
[1761689088405,2.50864573,3986.3,3985.5,0.405504]
[1761689088772,4.78654767,3986.4,3985.5,0.405504]
[1761689089310,2.50859777,3986.3,3985.5,0.405504]
[1761689089870,4.78653811,3986.4,3985.5,0.405504]
[1761689090094,2.278,3986.4,3985.5,0.405504]
[1761689090408,2.50859192,3986.3,3985.5,0.405504]
[1761689091209,5.01433417,3986.4,3985.5,0.405504]
[1761689091408,2.5058,3986.4,3985.5,0.405504]
[1761689091607,2.5058,3986.4,3985.2,0.407504]
[1761689091608,2.50864856,3986.3,3985.2,0.407504]
[1761689091800,2.50864856,3986.3,3985.4,0.405504]
[1761689093220,0.0909,3986.9,3985.2,0.1268]
[1761689093221,0.001,3988.5,3986.1,0.6801]
[1761689093389,0.001,3988.5,3986.3,1.960704]
[1761689093390,0.1248,3987.4,3986.3,1.960704]
[1761689093711,0.1248,3987.4,3986.8,0.405504]
[1761689094486,0.1248,3987.4,3987.0,0.405504]
[1761689094905,0.1248,3987.4,3987.1,0.6801]
[1761689096138,0.1248,3987.4,3987.1,0.2178]
[1761689096433,0.1248,3987.4,3986.7,0.5871]
[1761689096434,0.1248,3987.4,3986.7,0.1248]
[1761689096602,2.63314735,3986.7,3986.1,0.2178]
[1761689096800,0.1248,3986.5,3985.8,0.1248]
[1761689097017,0.0909,3986.9,3985.7,0.4623]
[1761689097207,0.1248,3986.2,3985.7,0.4623]
[1761689097937,0.1248,3986.2,3985.8,0.405504]
[1761689101412,0.1248,3986.2,3985.3,0.405504]
[1761689101413,2.50871779,3986.1,3985.3,0.405504]
[1761689102252,4.87561779,3986.1,3985.2,0.002]
[1761689103062,0.0909,3988.0,3985.2,0.407504]
[1761689103364,1.5552,3987.7,3986.1,0.6801]